[Event "Titled Tuesday Blitz January 17 Late 2023"]
[White "Belenkaya, Dina"]
[Black "Floresvillar Gonzalez, Luis Migu"]
[WhiteFideId "24142654"]
[BlackFideId "5100542"]
[WhiteElo "2267"]
[BlackElo "2043"]
[Result "1-0"]
[Round "03"]
[TimeControl "180+2"]
[Date "2023.01.17"]
[WhiteClock "0:01:00"]
[BlackClock "0:00:58"]

1. Nf3 {[%clk 0:03:00]}  d5 {[%clk 0:02:48]} 2. g3 {[%clk 0:03:01]}  c6 {[%clk 0:02:46]} 3. Bg2 {[%clk 0:03:02]}  Bg4 {[%clk 0:02:44]} 4. d3 {[%clk 0:03:03]}  Nd7 {[%clk 0:02:36]} 5. Nbd2 {[%clk 0:03:04]}  h6 {[%clk 0:02:34]} 6. O-O {[%clk 0:03:05]}  Ngf6 {[%clk 0:02:34]} 7. h3 {[%clk 0:03:05]}  Bh5 {[%clk 0:02:33]} 8. c3 {[%clk 0:03:01]}  e5 {[%clk 0:02:24]} 9. Qc2 {[%clk 0:02:51]}  Bd6 {[%clk 0:02:17]} 10. e4 {[%clk 0:02:38]}  Qe7 {[%clk 0:02:15]} 11. Re1 {[%clk 0:02:28]}  O-O {[%clk 0:02:12]} 12. Kh2 {[%clk 0:02:24]}  Rae8 {[%clk 0:02:11]} 13. Nh4 {[%clk 0:02:21]}  Nxe4 {[%clk 0:02:04]} 14. dxe4 {[%clk 0:02:19]}  d4 {[%clk 0:01:57]} 15. Nf5 {[%clk 0:02:10]}  Qe6 {[%clk 0:01:55]} 16. cxd4 {[%clk 0:02:04]}  exd4 {[%clk 0:01:54]} 17. Nxd4 {[%clk 0:02:04]}  Qf6 {[%clk 0:01:48]} 18. Nf5 {[%clk 0:02:01]}  Be5 {[%clk 0:01:44]} 19. f4 {[%clk 0:01:52]}  Bc7 {[%clk 0:01:42]} 20. e5 {[%clk 0:01:46]}  Qd8 {[%clk 0:01:25]} 21. Nc4 {[%clk 0:01:42]}  Bg6 {[%clk 0:01:25]} 22. Be4 {[%clk 0:01:39]}  Nxe5 {[%clk 0:01:17]} 23. Nxe5 {[%clk 0:01:39]}  Bxe5 {[%clk 0:01:16]} 24. fxe5 {[%clk 0:01:39]}  Rxe5 {[%clk 0:01:16]} 25. Bf4 {[%clk 0:01:37]}  Rxe4 {[%clk 0:01:12]} 26. Qxe4 {[%clk 0:01:38]}  Qb6 {[%clk 0:01:09]} 27. Ne7+ {[%clk 0:01:31]}  Kh7 {[%clk 0:01:09]} 28. Nxg6 {[%clk 0:01:32]}  fxg6 {[%clk 0:01:09]} 29. Re2 {[%clk 0:01:32]}  h5 {[%clk 0:01:04]} 30. Rd1 {[%clk 0:01:29]}  Rf6 {[%clk 0:01:03]} 31. Rd7 {[%clk 0:01:17]}  h4 {[%clk 0:01:02]} 32. Qe7 {[%clk 0:01:05]}  hxg3+ {[%clk 0:00:58]} 33. Bxg3 {[%clk 0:01:00]} 1-0


[Site "https://www.chess.com"]

[Event "Titled Tuesday Blitz January 17 Late 2023"]
[White "Bambino Filho, Antonio Carlos"]
[Black "Cepo, Toni"]
[WhiteFideId "2113163"]
[BlackFideId "4675916"]
[WhiteElo "2144"]
[BlackElo "2145"]
[Result "0-1"]
[Round "03"]
[TimeControl "180+2"]
[Date "2023.01.17"]
[WhiteClock "0:00:39"]
[BlackClock "0:00:45"]

1. e4 {[%clk 0:02:57]}  e5 {[%clk 0:02:58]} 2. Nf3 {[%clk 0:02:58]}  Nf6 {[%clk 0:02:57]} 3. Nc3 {[%clk 0:02:56]}  Bb4 {[%clk 0:02:54]} 4. Nxe5 {[%clk 0:02:54]}  d6 {[%clk 0:02:50]} 5. Nd3 {[%clk 0:02:54]}  Bxc3 {[%clk 0:02:42]} 6. bxc3 {[%clk 0:02:54]}  Nxe4 {[%clk 0:02:42]} 7. Be2 {[%clk 0:02:54]}  O-O {[%clk 0:02:41]} 8. O-O {[%clk 0:02:54]}  d5 {[%clk 0:02:40]} 9. Nf4 {[%clk 0:02:54]}  c6 {[%clk 0:02:38]} 10. Bf3 {[%clk 0:02:55]}  Bf5 {[%clk 0:02:37]} 11. Re1 {[%clk 0:02:55]}  Nd7 {[%clk 0:02:36]} 12. c4 {[%clk 0:02:55]}  Ndf6 {[%clk 0:02:30]} 13. Rb1 {[%clk 0:02:54]}  Qd7 {[%clk 0:02:24]} 14. cxd5 {[%clk 0:02:54]}  cxd5 {[%clk 0:02:22]} 15. Bb2 {[%clk 0:02:52]}  Rfe8 {[%clk 0:02:14]} 16. d3 {[%clk 0:02:51]}  Qc7 {[%clk 0:01:28]} 17. dxe4 {[%clk 0:02:48]}  dxe4 {[%clk 0:01:28]} 18. Bxf6 {[%clk 0:02:45]}  Qxf4 {[%clk 0:01:27]} 19. Be2 {[%clk 0:02:15]}  gxf6 {[%clk 0:01:22]} 20. Rxb7 {[%clk 0:02:15]}  Rac8 {[%clk 0:01:18]} 21. Rxa7 {[%clk 0:02:08]}  e3 {[%clk 0:01:18]} 22. f3 {[%clk 0:01:56]}  Rxc2 {[%clk 0:01:15]} 23. Qd5 {[%clk 0:01:55]}  Be6 {[%clk 0:01:04]} 24. Qb5 {[%clk 0:01:46]}  Rec8 {[%clk 0:01:01]} 25. Ra4 {[%clk 0:01:40]}  Qd6 {[%clk 0:00:52]} 26. Re4 {[%clk 0:01:03]}  Qd2 {[%clk 0:00:47]} 27. Qb1 {[%clk 0:00:39]}  Rc1 {[%clk 0:00:45]} 0-1


[Site "https://www.chess.com"]

[Event "Titled Tuesday Blitz January 17 Late 2023"]
[White "Thiel, Thomas"]
[Black "Besedes, Danilo"]
[WhiteFideId "4615964"]
[BlackFideId "946796"]
[WhiteElo "2234"]
[BlackElo "2297"]
[Result "0-1"]
[Round "03"]
[TimeControl "180+2"]
[Date "2023.01.17"]
[WhiteClock "0:00:53"]
[BlackClock "0:01:09"]

1. e4 {[%clk 0:03:00]}  g6 {[%clk 0:02:58]} 2. d4 {[%clk 0:03:00]}  Bg7 {[%clk 0:02:59]} 3. Nc3 {[%clk 0:02:59]}  d6 {[%clk 0:03:00]} 4. Bc4 {[%clk 0:02:58]}  Nc6 {[%clk 0:03:00]} 5. Nf3 {[%clk 0:02:53]}  e5 {[%clk 0:03:00]} 6. dxe5 {[%clk 0:02:52]}  Nxe5 {[%clk 0:03:00]} 7. Nxe5 {[%clk 0:02:51]}  Bxe5 {[%clk 0:03:00]} 8. O-O {[%clk 0:02:48]}  Ne7 {[%clk 0:02:48]} 9. Bh6 {[%clk 0:02:45]}  Be6 {[%clk 0:02:42]} 10. Bxe6 {[%clk 0:02:42]}  fxe6 {[%clk 0:02:43]} 11. Ne2 {[%clk 0:02:34]}  Qd7 {[%clk 0:02:40]} 12. f4 {[%clk 0:02:29]}  Bf6 {[%clk 0:02:40]} 13. Qd2 {[%clk 0:02:14]}  O-O-O {[%clk 0:02:37]} 14. Qe3 {[%clk 0:02:13]}  Nc6 {[%clk 0:02:34]} 15. c3 {[%clk 0:02:10]}  d5 {[%clk 0:02:28]} 16. e5 {[%clk 0:02:07]}  Bg7 {[%clk 0:02:21]} 17. Bxg7 {[%clk 0:02:06]}  Qxg7 {[%clk 0:02:21]} 18. Nd4 {[%clk 0:02:06]}  Ne7 {[%clk 0:02:17]} 19. Nxe6 {[%clk 0:02:04]}  Qf7 {[%clk 0:02:18]} 20. Nxd8 {[%clk 0:02:03]}  Rxd8 {[%clk 0:02:18]} 21. Qxa7 {[%clk 0:01:54]}  Nc6 {[%clk 0:02:01]} 22. Qe3 {[%clk 0:01:51]}  Qf5 {[%clk 0:01:48]} 23. Rad1 {[%clk 0:01:46]}  Kb8 {[%clk 0:01:47]} 24. b3 {[%clk 0:01:45]}  Ne7 {[%clk 0:01:46]} 25. c4 {[%clk 0:01:41]}  c6 {[%clk 0:01:44]} 26. cxd5 {[%clk 0:01:39]}  Nxd5 {[%clk 0:01:45]} 27. Qg3 {[%clk 0:01:35]}  Qc2 {[%clk 0:01:42]} 28. Qf2 {[%clk 0:01:31]}  Qf5 {[%clk 0:01:37]} 29. Rd4 {[%clk 0:01:30]}  Rf8 {[%clk 0:01:31]} 30. h3 {[%clk 0:01:23]}  h5 {[%clk 0:01:31]} 31. a3 {[%clk 0:01:19]}  Qe6 {[%clk 0:01:26]} 32. b4 {[%clk 0:01:18]}  g5 {[%clk 0:01:23]} 33. Qe2 {[%clk 0:01:10]}  Nxf4 {[%clk 0:01:19]} 34. Qe3 {[%clk 0:00:57]}  Re8 {[%clk 0:01:15]} 35. Re1 {[%clk 0:00:54]}  Qa2 {[%clk 0:01:10]} 36. b5 {[%clk 0:00:53]}  Qxg2# {[%clk 0:01:09]} 0-1


[Site "https://www.chess.com"]

[Event "Titled Tuesday Blitz January 17 Late 2023"]
[White "Mendez Machado, Andre"]
[Black "Qiao, Cindy"]
[WhiteFideId "6603793"]
[BlackFideId "2620243"]
[WhiteElo "1974"]
[BlackElo "1785"]
[Result "0-1"]
[Round "03"]
[TimeControl "180+2"]
[Date "2023.01.17"]
[WhiteClock "0:00:10"]
[BlackClock "0:01:02"]

1. e4 {[%clk 0:02:58]}  c5 {[%clk 0:02:57]} 2. Nc3 {[%clk 0:02:58]}  Nc6 {[%clk 0:02:57]} 3. Bb5 {[%clk 0:02:58]}  Nd4 {[%clk 0:02:57]} 4. Nf3 {[%clk 0:02:58]}  a6 {[%clk 0:02:55]} 5. Bd3 {[%clk 0:02:58]}  g6 {[%clk 0:02:51]} 6. Rb1 {[%clk 0:02:55]}  Bg7 {[%clk 0:02:51]} 7. b4 {[%clk 0:02:55]}  d6 {[%clk 0:02:45]} 8. bxc5 {[%clk 0:02:46]}  dxc5 {[%clk 0:02:46]} 9. Na4 {[%clk 0:02:46]}  Qc7 {[%clk 0:02:39]} 10. Nb6 {[%clk 0:02:41]}  Rb8 {[%clk 0:02:38]} 11. Nxd4 {[%clk 0:02:16]}  cxd4 {[%clk 0:02:35]} 12. Ba3 {[%clk 0:01:47]}  Nf6 {[%clk 0:02:30]} 13. O-O {[%clk 0:01:40]}  O-O {[%clk 0:02:30]} 14. f4 {[%clk 0:01:38]}  Re8 {[%clk 0:02:20]} 15. e5 {[%clk 0:01:33]}  Nd7 {[%clk 0:02:17]} 16. Nd5 {[%clk 0:01:27]}  Qd8 {[%clk 0:02:18]} 17. Qf3 {[%clk 0:00:57]}  b5 {[%clk 0:02:12]} 18. Qe4 {[%clk 0:00:44]}  Nb6 {[%clk 0:01:47]} 19. Nxb6 {[%clk 0:00:32]}  Bb7 {[%clk 0:01:47]} 20. Qe2 {[%clk 0:00:19]}  Qxb6 {[%clk 0:01:47]} 21. f5 {[%clk 0:00:19]}  Qc6 {[%clk 0:01:45]} 22. fxg6 {[%clk 0:00:15]}  hxg6 {[%clk 0:01:46]} 23. Rf4 {[%clk 0:00:13]}  Qe6 {[%clk 0:01:43]} 24. Rbf1 {[%clk 0:00:11]}  Rf8 {[%clk 0:01:41]} 25. Qf2 {[%clk 0:00:09]}  Bd5 {[%clk 0:01:40]} 26. Bb2 {[%clk 0:00:08]}  Bxe5 {[%clk 0:01:40]} 27. Rh4 {[%clk 0:00:08]}  Bf6 {[%clk 0:01:38]} 28. Bxd4 {[%clk 0:00:07]}  Kg7 {[%clk 0:01:12]} 29. Bxf6+ {[%clk 0:00:07]}  exf6 {[%clk 0:01:11]} 30. Qd4 {[%clk 0:00:05]}  Qe5 {[%clk 0:01:07]} 31. Qxe5 {[%clk 0:00:04]}  fxe5 {[%clk 0:01:08]} 32. Be4 {[%clk 0:00:03]}  Bxa2 {[%clk 0:01:08]} 33. Bc6 {[%clk 0:00:02]}  Be6 {[%clk 0:01:04]} 34. Re1 {[%clk 0:00:02]}  Rb6 {[%clk 0:01:03]} 35. Bf3 {[%clk 0:00:01]}  Rc8 {[%clk 0:01:01]} 36. d4 {[%clk 0:00:02]}  exd4 {[%clk 0:01:00]} 37. Rxd4 {[%clk 0:00:01]}  Rxc2 {[%clk 0:01:00]} 38. Rd8 {[%clk 0:00:02]}  b4 {[%clk 0:00:59]} 39. Ra8 {[%clk 0:00:02]}  b3 {[%clk 0:00:58]} 40. Rd1 {[%clk 0:00:02]}  b2 {[%clk 0:00:58]} 41. Be4 {[%clk 0:00:02]}  Rc1 {[%clk 0:00:56]} 42. Rd8 {[%clk 0:00:03]}  b1=Q {[%clk 0:00:55]} 43. Bxb1 {[%clk 0:00:03]}  Rbxb1 {[%clk 0:00:56]} 44. Rxc1 {[%clk 0:00:03]}  Rxc1+ {[%clk 0:00:57]} 45. Kf2 {[%clk 0:00:04]}  a5 {[%clk 0:00:57]} 46. Ra8 {[%clk 0:00:05]}  Ra1 {[%clk 0:00:56]} 47. g4 {[%clk 0:00:04]}  Ra2+ {[%clk 0:00:57]} 48. Kg3 {[%clk 0:00:04]}  a4 {[%clk 0:00:57]} 49. h4 {[%clk 0:00:05]}  a3 {[%clk 0:00:57]} 50. h5 {[%clk 0:00:05]}  gxh5 {[%clk 0:00:57]} 51. gxh5 {[%clk 0:00:06]}  Rb2 {[%clk 0:00:57]} 52. Rxa3 {[%clk 0:00:05]}  Rb3+ {[%clk 0:00:57]} 53. Rxb3 {[%clk 0:00:05]}  Bxb3 {[%clk 0:00:58]} 54. Kf4 {[%clk 0:00:05]}  Kh6 {[%clk 0:00:58]} 55. Kg4 {[%clk 0:00:06]}  Bd1+ {[%clk 0:00:57]} 56. Kf5 {[%clk 0:00:06]}  Bxh5 {[%clk 0:00:58]} 57. Kf6 {[%clk 0:00:07]}  Bg6 {[%clk 0:00:58]} 58. Ke7 {[%clk 0:00:07]}  Kh5 {[%clk 0:00:59]} 59. Kf6 {[%clk 0:00:08]}  Kg4 {[%clk 0:00:59]} 60. Kg7 {[%clk 0:00:07]}  f5 {[%clk 0:00:59]} 61. Kf6 {[%clk 0:00:08]}  f4 {[%clk 0:01:00]} 62. Kxg6 {[%clk 0:00:08]}  f3 {[%clk 0:01:01]} 63. Kf6 {[%clk 0:00:09]}  f2 {[%clk 0:01:02]} 64. Kg6 {[%clk 0:00:10]}  f1=Q {[%clk 0:01:02]} 0-1


[Site "https://www.chess.com"]

[Event "Titled Tuesday Blitz January 17 Late 2023"]
[White "Batista, Renato Luiz"]
[Black "Forgacs, Attila Jr."]
[WhiteFideId "2106540"]
[BlackFideId "773654"]
[WhiteElo "2174"]
[BlackElo "2264"]
[Result "0-1"]
[Round "03"]
[TimeControl "180+2"]
[Date "2023.01.17"]
[WhiteClock "0:00:06"]
[BlackClock "0:00:07"]

1. e4 {[%clk 0:02:55]}  e5 {[%clk 0:02:59]} 2. Nf3 {[%clk 0:02:55]}  Nc6 {[%clk 0:03:00]} 3. Bb5 {[%clk 0:02:54]}  a6 {[%clk 0:03:00]} 4. Ba4 {[%clk 0:02:54]}  Nf6 {[%clk 0:03:00]} 5. O-O {[%clk 0:02:54]}  Be7 {[%clk 0:03:01]} 6. Bxc6 {[%clk 0:02:53]}  dxc6 {[%clk 0:03:00]} 7. Qe1 {[%clk 0:02:54]}  O-O {[%clk 0:02:58]} 8. d3 {[%clk 0:02:51]}  Nd7 {[%clk 0:02:56]} 9. b3 {[%clk 0:02:50]}  f6 {[%clk 0:02:56]} 10. Bb2 {[%clk 0:02:50]}  c5 {[%clk 0:02:56]} 11. Nbd2 {[%clk 0:02:50]}  Nb8 {[%clk 0:02:56]} 12. h3 {[%clk 0:02:50]}  Nc6 {[%clk 0:02:57]} 13. Nh2 {[%clk 0:02:49]}  Nd4 {[%clk 0:02:51]} 14. Rc1 {[%clk 0:02:49]}  b6 {[%clk 0:02:47]} 15. f4 {[%clk 0:02:49]}  exf4 {[%clk 0:02:46]} 16. Rxf4 {[%clk 0:02:46]}  Bd6 {[%clk 0:02:46]} 17. Rf1 {[%clk 0:02:45]}  Be5 {[%clk 0:02:41]} 18. Nc4 {[%clk 0:02:38]}  Bxh2+ {[%clk 0:02:20]} 19. Kxh2 {[%clk 0:02:38]}  b5 {[%clk 0:02:21]} 20. Ne3 {[%clk 0:02:36]}  Qd6+ {[%clk 0:02:18]} 21. Kh1 {[%clk 0:02:33]}  Bb7 {[%clk 0:02:09]} 22. Bxd4 {[%clk 0:02:18]}  cxd4 {[%clk 0:02:09]} 23. Nf5 {[%clk 0:02:18]}  Qe5 {[%clk 0:02:09]} 24. Qf2 {[%clk 0:02:05]}  c5 {[%clk 0:02:07]} 25. c3 {[%clk 0:02:05]}  dxc3 {[%clk 0:02:03]} 26. Qh4 {[%clk 0:00:50]}  Bc8 {[%clk 0:01:29]} 27. Rf3 {[%clk 0:00:42]}  b4 {[%clk 0:01:18]} 28. Rcf1 {[%clk 0:00:37]}  Bxf5 {[%clk 0:01:12]} 29. Rxf5 {[%clk 0:00:36]}  Qe7 {[%clk 0:01:05]} 30. Rh5 {[%clk 0:00:35]}  h6 {[%clk 0:01:03]} 31. Qg4 {[%clk 0:00:23]}  Kh8 {[%clk 0:01:02]} 32. Rff5 {[%clk 0:00:18]}  Rac8 {[%clk 0:00:49]} 33. Kh2 {[%clk 0:00:14]}  c2 {[%clk 0:00:48]} 34. Qf4 {[%clk 0:00:13]}  Qc7 {[%clk 0:00:43]} 35. e5 {[%clk 0:00:13]}  Rfe8 {[%clk 0:00:25]} 36. g3 {[%clk 0:00:12]}  Rxe5 {[%clk 0:00:21]} 37. Rxe5 {[%clk 0:00:12]}  fxe5 {[%clk 0:00:21]} 38. Qd2 {[%clk 0:00:12]}  Qd6 {[%clk 0:00:14]} 39. Qxc2 {[%clk 0:00:11]}  Rd8 {[%clk 0:00:12]} 40. Qd2 {[%clk 0:00:11]}  Qxd3 {[%clk 0:00:12]} 41. Rxh6+ {[%clk 0:00:11]}  gxh6 {[%clk 0:00:11]} 42. Qxh6+ {[%clk 0:00:11]}  Kg8 {[%clk 0:00:11]} 43. Qe6+ {[%clk 0:00:11]}  Kf8 {[%clk 0:00:11]} 44. Qf6+ {[%clk 0:00:12]}  Kg8 {[%clk 0:00:10]} 45. Qg5+ {[%clk 0:00:11]}  Kf7 {[%clk 0:00:10]} 46. Qh5+ {[%clk 0:00:09]}  Qg6 {[%clk 0:00:09]} 47. Qf3+ {[%clk 0:00:10]}  Qf6 {[%clk 0:00:09]} 48. Qb7+ {[%clk 0:00:09]}  Kg6 {[%clk 0:00:09]} 49. Qe4+ {[%clk 0:00:09]}  Kg7 {[%clk 0:00:09]} 50. Qb7+ {[%clk 0:00:07]}  Kf8 {[%clk 0:00:08]} 51. Qe4 {[%clk 0:00:06]}  Rd2+ {[%clk 0:00:07]} 0-1


[Site "https://www.chess.com"]

[Event "Titled Tuesday Blitz January 17 Late 2023"]
[White "Sabar, Ethmane Daouda"]
[Black "Estrada Nieto, Julian"]
[WhiteFideId "19600097"]
[BlackFideId "5101018"]
[WhiteElo "2040"]
[BlackElo "2215"]
[Result "0-1"]
[Round "03"]
[TimeControl "180+2"]
[Date "2023.01.17"]
[WhiteClock "0:00:15"]
[BlackClock "0:01:08"]

1. e4 {[%clk 0:02:56]}  e5 {[%clk 0:02:59]} 2. Bc4 {[%clk 0:02:55]}  Nc6 {[%clk 0:02:59]} 3. Nf3 {[%clk 0:02:53]}  Nf6 {[%clk 0:02:58]} 4. d4 {[%clk 0:02:53]}  exd4 {[%clk 0:02:58]} 5. O-O {[%clk 0:02:53]}  Bc5 {[%clk 0:02:53]} 6. e5 {[%clk 0:02:38]}  d5 {[%clk 0:02:32]} 7. Bb5 {[%clk 0:02:32]}  Ne4 {[%clk 0:02:32]} 8. Nxd4 {[%clk 0:02:29]}  Bd7 {[%clk 0:02:32]} 9. Bxc6 {[%clk 0:02:23]}  bxc6 {[%clk 0:02:32]} 10. Nb3 {[%clk 0:02:15]}  Bb6 {[%clk 0:02:31]} 11. N1d2 {[%clk 0:02:12]}  Nxd2 {[%clk 0:02:30]} 12. Qxd2 {[%clk 0:01:57]}  O-O {[%clk 0:02:31]} 13. a4 {[%clk 0:01:50]}  a5 {[%clk 0:02:30]} 14. Qc3 {[%clk 0:01:10]}  Qh4 {[%clk 0:02:15]} 15. g3 {[%clk 0:01:02]}  Qh3 {[%clk 0:02:14]} 16. Be3 {[%clk 0:00:57]}  Rfe8 {[%clk 0:01:52]} 17. Nc5 {[%clk 0:00:55]}  Bf5 {[%clk 0:01:45]} 18. Bd4 {[%clk 0:00:49]}  h5 {[%clk 0:01:41]} 19. f4 {[%clk 0:00:37]}  Bxc5 {[%clk 0:01:29]} 20. Bxc5 {[%clk 0:00:34]}  Be4 {[%clk 0:01:24]} 21. Rf2 {[%clk 0:00:33]}  Re6 {[%clk 0:01:20]} 22. Re1 {[%clk 0:00:18]}  Rg6 {[%clk 0:01:18]} 23. Re3 {[%clk 0:00:18]}  h4 {[%clk 0:01:13]} 24. b3 {[%clk 0:00:17]}  Re8 {[%clk 0:01:09]} 25. Qxa5 {[%clk 0:00:16]}  hxg3 {[%clk 0:01:08]} 26. Rxg3 {[%clk 0:00:15]}  Rxg3+ {[%clk 0:01:08]} 0-1


[Site "https://www.chess.com"]

[Event "Titled Tuesday Blitz January 17 Late 2023"]
[White "Ferreira, Thales Bond Dias"]
[Black "Davidson, Kevin"]
[WhiteFideId "22777830"]
[BlackFideId "2056810"]
[WhiteElo "2085"]
[BlackElo "2154"]
[Result "0-1"]
[Round "03"]
[TimeControl "180+2"]
[Date "2023.01.17"]
[WhiteClock "0:02:06"]
[BlackClock "0:01:46"]

1. d4 {[%clk 0:03:00]}  Nf6 {[%clk 0:02:59]} 2. c4 {[%clk 0:03:01]}  g6 {[%clk 0:02:59]} 3. Nc3 {[%clk 0:03:01]}  Bg7 {[%clk 0:03:00]} 4. Nf3 {[%clk 0:03:00]}  d6 {[%clk 0:03:00]} 5. Bf4 {[%clk 0:03:00]}  O-O {[%clk 0:02:57]} 6. e3 {[%clk 0:03:01]}  Nfd7 {[%clk 0:02:57]} 7. Be2 {[%clk 0:03:00]}  h6 {[%clk 0:02:57]} 8. h3 {[%clk 0:02:58]}  e5 {[%clk 0:02:57]} 9. Bh2 {[%clk 0:02:57]}  Nc6 {[%clk 0:02:57]} 10. O-O {[%clk 0:02:55]}  f5 {[%clk 0:02:57]} 11. dxe5 {[%clk 0:02:53]}  dxe5 {[%clk 0:02:57]} 12. Qb3 {[%clk 0:02:50]}  g5 {[%clk 0:02:51]} 13. Rad1 {[%clk 0:02:45]}  f4 {[%clk 0:02:47]} 14. Ne4 {[%clk 0:02:33]}  Qe7 {[%clk 0:02:39]} 15. Rd2 {[%clk 0:02:22]}  Nc5 {[%clk 0:02:29]} 16. Nxc5 {[%clk 0:02:20]}  Qxc5 {[%clk 0:02:30]} 17. Rd5 {[%clk 0:02:19]}  Qe7 {[%clk 0:02:29]} 18. Rfd1 {[%clk 0:02:16]}  Kh8 {[%clk 0:02:15]} 19. R5d2 {[%clk 0:02:10]}  a5 {[%clk 0:02:11]} 20. a3 {[%clk 0:02:09]}  a4 {[%clk 0:02:07]} 21. Qc2 {[%clk 0:02:08]}  Bf5 {[%clk 0:01:57]} 22. Bd3 {[%clk 0:02:06]}  e4 {[%clk 0:01:46]} 0-1


[Site "https://www.chess.com"]

[Event "Titled Tuesday Blitz January 17 Late 2023"]
[White "Gutkin, Ilya"]
[Black "ritanovikova"]
[WhiteFideId "16203470"]
[WhiteElo "2273"]
[BlackElo "2148"]
[Result "1/2-1/2"]
[Round "03"]
[TimeControl "180+2"]
[Date "2023.01.17"]
[WhiteClock "0:00:48"]
[BlackClock "0:02:09"]

1. e4 {[%clk 0:03:00]}  d5 {[%clk 0:02:59]} 2. exd5 {[%clk 0:03:00]}  Qxd5 {[%clk 0:02:59]} 3. Nc3 {[%clk 0:03:00]}  Qd6 {[%clk 0:02:59]} 4. d4 {[%clk 0:03:00]}  Nf6 {[%clk 0:02:59]} 5. Nf3 {[%clk 0:03:00]}  a6 {[%clk 0:02:56]} 6. Be2 {[%clk 0:02:58]}  Bg4 {[%clk 0:02:55]} 7. O-O {[%clk 0:02:58]}  Nc6 {[%clk 0:02:55]} 8. Be3 {[%clk 0:02:39]}  e6 {[%clk 0:02:54]} 9. a3 {[%clk 0:02:37]}  O-O-O {[%clk 0:02:50]} 10. b4 {[%clk 0:02:37]}  Bxf3 {[%clk 0:02:48]} 11. Bxf3 {[%clk 0:02:37]}  Nxd4 {[%clk 0:02:49]} 12. Bxd4 {[%clk 0:02:08]}  Qxd4 {[%clk 0:02:50]} 13. Qe1 {[%clk 0:02:07]}  Be7 {[%clk 0:02:42]} 14. Rd1 {[%clk 0:02:02]}  Qf4 {[%clk 0:02:39]} 15. Qe2 {[%clk 0:01:59]}  h5 {[%clk 0:02:36]} 16. g3 {[%clk 0:01:35]}  Qh6 {[%clk 0:02:32]} 17. b5 {[%clk 0:01:29]}  a5 {[%clk 0:02:31]} 18. h4 {[%clk 0:01:12]}  g5 {[%clk 0:02:30]} 19. hxg5 {[%clk 0:01:12]}  Qxg5 {[%clk 0:02:29]} 20. Ne4 {[%clk 0:01:07]}  Qe5 {[%clk 0:02:09]} 21. Qe1 {[%clk 0:00:48]} 1/2-1/2


[Site "https://www.chess.com"]

[Event "Titled Tuesday Blitz January 17 Late 2023"]
[White "Stachanczyk, Jacek"]
[Black "Levine, David"]
[WhiteFideId "1116657"]
[BlackFideId "2011611"]
[WhiteElo "2147"]
[BlackElo "2040"]
[Result "1-0"]
[Round "03"]
[TimeControl "180+2"]
[Date "2023.01.17"]
[WhiteClock "0:01:00"]
[BlackClock "0:01:00"]

1. e4 {[%clk 0:02:56]}  e5 {[%clk 0:02:59]} 2. Nf3 {[%clk 0:02:54]}  Nc6 {[%clk 0:02:59]} 3. Bb5 {[%clk 0:02:52]}  a6 {[%clk 0:02:58]} 4. Ba4 {[%clk 0:02:52]}  Nf6 {[%clk 0:02:57]} 5. O-O {[%clk 0:02:52]}  Be7 {[%clk 0:02:57]} 6. Re1 {[%clk 0:02:52]}  b5 {[%clk 0:02:57]} 7. Bb3 {[%clk 0:02:52]}  d6 {[%clk 0:02:57]} 8. c3 {[%clk 0:02:53]}  O-O {[%clk 0:02:57]} 9. h3 {[%clk 0:02:53]}  Bb7 {[%clk 0:02:57]} 10. d4 {[%clk 0:02:52]}  Re8 {[%clk 0:02:57]} 11. a4 {[%clk 0:02:34]}  Bf8 {[%clk 0:02:55]} 12. axb5 {[%clk 0:01:51]}  axb5 {[%clk 0:02:54]} 13. Rxa8 {[%clk 0:01:51]}  Qxa8 {[%clk 0:02:46]} 14. Bxf7+ {[%clk 0:01:45]}  Kxf7 {[%clk 0:02:45]} 15. Ng5+ {[%clk 0:01:44]}  Ke7 {[%clk 0:02:23]} 16. dxe5 {[%clk 0:01:37]}  Nxe5 {[%clk 0:02:17]} 17. f4 {[%clk 0:01:36]}  Nc6 {[%clk 0:01:18]} 18. e5 {[%clk 0:01:33]}  dxe5 {[%clk 0:01:18]} 19. fxe5 {[%clk 0:01:33]}  Nd7 {[%clk 0:01:11]} 20. Qh5 {[%clk 0:01:06]}  Ncxe5 {[%clk 0:01:02]} 21. Bf4 {[%clk 0:01:04]}  Kd8 {[%clk 0:01:02]} 22. Bxe5 {[%clk 0:01:01]}  Rxe5 {[%clk 0:01:02]} 23. Nf7+ {[%clk 0:01:00]}  Kc8 {[%clk 0:01:00]} 24. Nxe5 {[%clk 0:01:00]}  Nxe5 {[%clk 0:01:00]} 25. Qe8# {[%clk 0:01:00]} 1-0


[Site "https://www.chess.com"]

[Event "Titled Tuesday Blitz January 17 Late 2023"]
[White "Marcolino, Daniel Mattos"]
[Black "Haraguchi, Diego Sashaki"]
[WhiteFideId "2106841"]
[BlackFideId "22729925"]
[WhiteElo "2006"]
[BlackElo "2015"]
[Result "0-1"]
[Round "03"]
[TimeControl "180+2"]
[Date "2023.01.17"]
[WhiteClock "0:00:21"]
[BlackClock "0:01:16"]

1. d4 {[%clk 0:03:00]}  Nf6 {[%clk 0:02:59]} 2. Nf3 {[%clk 0:03:00]}  g6 {[%clk 0:02:59]} 3. g3 {[%clk 0:03:00]}  Bg7 {[%clk 0:03:00]} 4. Bg2 {[%clk 0:03:01]}  O-O {[%clk 0:03:01]} 5. O-O {[%clk 0:03:01]}  b6 {[%clk 0:03:00]} 6. c4 {[%clk 0:03:00]}  Bb7 {[%clk 0:03:01]} 7. d5 {[%clk 0:02:58]}  e6 {[%clk 0:02:59]} 8. Nc3 {[%clk 0:02:59]}  exd5 {[%clk 0:02:57]} 9. cxd5 {[%clk 0:03:00]}  c5 {[%clk 0:02:56]} 10. e4 {[%clk 0:02:54]}  d6 {[%clk 0:02:55]} 11. Re1 {[%clk 0:02:54]}  Nfd7 {[%clk 0:02:55]} 12. Qc2 {[%clk 0:02:50]}  a6 {[%clk 0:02:55]} 13. a4 {[%clk 0:02:49]}  Ne5 {[%clk 0:02:55]} 14. Bf4 {[%clk 0:02:47]}  Nbd7 {[%clk 0:02:54]} 15. h4 {[%clk 0:02:21]}  Nxf3+ {[%clk 0:02:50]} 16. Bxf3 {[%clk 0:02:22]}  Ne5 {[%clk 0:02:51]} 17. Bg2 {[%clk 0:02:21]}  Re8 {[%clk 0:02:44]} 18. h5 {[%clk 0:02:17]}  g5 {[%clk 0:02:41]} 19. Bd2 {[%clk 0:01:44]}  g4 {[%clk 0:02:36]} 20. Nd1 {[%clk 0:01:33]}  Qf6 {[%clk 0:02:32]} 21. Ne3 {[%clk 0:01:32]}  Bc8 {[%clk 0:02:25]} 22. Nf5 {[%clk 0:01:30]}  Bxf5 {[%clk 0:02:15]} 23. exf5 {[%clk 0:01:31]}  Nf3+ {[%clk 0:02:13]} 24. Bxf3 {[%clk 0:01:30]}  gxf3 {[%clk 0:02:14]} 25. Bf4 {[%clk 0:01:24]}  Qxb2 {[%clk 0:01:55]} 26. Qxb2 {[%clk 0:01:21]}  Bxb2 {[%clk 0:01:56]} 27. Rxe8+ {[%clk 0:01:20]}  Rxe8 {[%clk 0:01:55]} 28. Rb1 {[%clk 0:01:21]}  Bd4 {[%clk 0:01:53]} 29. Bxd6 {[%clk 0:01:15]}  Rd8 {[%clk 0:01:41]} 30. Bf4 {[%clk 0:00:56]}  Rxd5 {[%clk 0:01:35]} 31. Rxb6 {[%clk 0:00:55]}  Rxf5 {[%clk 0:01:36]} 32. h6 {[%clk 0:00:54]}  Kf8 {[%clk 0:01:29]} 33. Bd6+ {[%clk 0:00:45]}  Ke8 {[%clk 0:01:29]} 34. Rc6 {[%clk 0:00:34]}  Kd7 {[%clk 0:01:28]} 35. Rxa6 {[%clk 0:00:34]}  Rf6 {[%clk 0:01:28]} 36. Bxc5 {[%clk 0:00:25]}  Rxa6 {[%clk 0:01:24]} 37. Bxd4 {[%clk 0:00:25]}  Rxa4 {[%clk 0:01:24]} 38. Be3 {[%clk 0:00:25]}  Ke6 {[%clk 0:01:23]} 39. g4 {[%clk 0:00:23]}  Rxg4+ {[%clk 0:01:21]} 40. Kh2 {[%clk 0:00:24]}  Kf5 {[%clk 0:01:19]} 41. Kh3 {[%clk 0:00:24]}  Rg2 {[%clk 0:01:18]} 42. Bd4 {[%clk 0:00:21]}  Ke4 {[%clk 0:01:15]} 43. Be3 {[%clk 0:00:22]}  Kd3 {[%clk 0:01:15]} 44. Kh4 {[%clk 0:00:21]}  Ke2 {[%clk 0:01:16]} 0-1


[Site "https://www.chess.com"]